bitfinex/quotes_BTCUSD_20230115
["timestamp","ask_amount","ask_price","bid_price","bid_amount"]
[1673751189458,0.047,20711.0,20710.0,0.30084632]
[1673751189691,0.047,20711.0,20710.0,0.78370432]
[1673751190944,0.76046635,20713.0,20710.0,0.78370432]
[1673751191194,0.09,20711.0,20710.0,0.78370432]
[1673751191452,0.09,20711.0,20710.0,0.482858]
[1673751191961,0.09,20711.0,20710.0,1.32537759]
[1673751192207,0.09,20711.0,20710.0,2.30710716]
[1673751192454,0.09,20711.0,20710.0,2.307468]
[1673751192701,0.09,20711.0,20710.0,1.34171905]
[1673751192943,0.09,20711.0,20710.0,1.16007303]
[1673751193211,0.09,20711.0,20710.0,0.94345098]
[1673751197640,0.09,20711.0,20710.0,2.60647532]
[1673751198170,0.09,20711.0,20710.0,1.32475724]
[1673751198393,0.09,20711.0,20710.0,1.69613823]
[1673751198921,0.09,20711.0,20710.0,1.39613823]
[1673751199450,0.09,20711.0,20710.0,1.2154734]
[1673751200042,0.09,20711.0,20710.0,0.99885135]
[1673751200237,0.09,20711.0,20710.0,1.39633235]
[1673751200487,0.09,20711.0,20710.0,1.2154734]
[1673751200709,0.09,20711.0,20710.0,0.99885135]
[1673751202751,0.09,20711.0,20710.0,0.85423899]
[1673751203017,0.45151595,20711.0,20708.0,0.31795178]
[1673751203301,0.49643676,20711.0,20708.0,0.31795178]
[1673751203541,0.49633412,20711.0,20709.0,0.39058114]
[1673751203832,0.45141331,20711.0,20709.0,0.39058114]
[1673751204760,0.08989736,20711.0,20709.0,0.39058114]
[1673751205043,1.50713666,20713.0,20709.0,0.39058114]
[1673751205289,1.50713666,20713.0,20709.0,0.58130709]
[1673751205290,1.43794326,20712.0,20709.0,0.58130709]
[1673751205534,0.32093,20711.0,20709.0,0.39058114]
[1673751205787,1.43794326,20712.0,20709.0,0.44676859]
[1673751206028,0.487839,20711.0,20709.0,0.44676859]
[1673751206303,0.482839,20711.0,20709.0,0.44676859]
[1673751206586,0.482839,20711.0,20709.0,0.39058114]
[1673751207092,0.529839,20711.0,20709.0,0.39058114]
[1673751207842,0.85324282,20711.0,20709.0,0.39058114]
[1673751208917,0.85324282,20711.0,20708.0,0.01059793]
[1673751209396,0.37040382,20711.0,20708.0,0.32034075]
[1673751209649,0.37040382,20711.0,20709.0,0.3712236]
[1673751209914,0.37040382,20711.0,20709.0,0.32311998]
[1673751210164,0.32340382,20711.0,20709.0,0.32311998]
[1673751210412,0.32840382,20711.0,20709.0,0.32311998]
[1673751210919,0.32340382,20711.0,20709.0,0.32311998]
[1673751211697,0.32340382,20711.0,20708.0,0.01059793]
[1673751211956,0.37040382,20711.0,20708.0,0.31220466]
[1673751212465,0.46681914,20711.0,20708.0,0.31220466]
[1673751212765,0.46681914,20711.0,20708.0,0.31320466]
[1673751212766,0.32093,20710.0,20708.0,0.31320466]
[1673751212986,0.205374,20709.0,20708.0,0.01159793]
[1673751213259,0.64380552,20709.0,20708.0,0.01159793]
[1673751213535,0.64380552,20709.0,20708.0,0.01059793]
[1673751213536,1.08641471,20709.0,20708.0,0.01059793]
[1673751213767,1.52983003,20709.0,20708.0,0.01159793]
[1673751214110,2.59459881,20709.0,20707.0,0.01608308]
[1673751214291,0.00407732,20707.0,20706.0,0.01705876]
[1673751214543,2.09532076,20707.0,20706.0,0.01705876]
[1673751214804,2.40382076,20707.0,20706.0,0.01705876]
[1673751215064,2.26018026,20707.0,20706.0,0.01705876]
[1673751215316,2.40381929,20707.0,20706.0,0.01705876]
[1673751215573,0.1,20706.0,20705.0,0.01754441]
[1673751215833,0.696825,20706.0,20705.0,0.01754441]
[1673751216102,0.0085,20706.0,20705.0,0.49235815]
[1673751216344,0.09607732,20707.0,20706.0,0.37486916]
[1673751216599,0.00407732,20707.0,20706.0,0.37486916]
[1673751216853,0.4633787,20707.0,20705.0,0.01754441]
[1673751217358,0.09607732,20707.0,20705.0,0.01754441]
[1673751217608,0.32093,20706.0,20705.0,0.01754441]
[1673751217855,0.41243,20706.0,20705.0,0.01854441]
[1673751218123,0.32943,20706.0,20705.0,0.01754441]
[1673751218371,0.812381,20706.0,20705.0,0.01854441]
[1673751218626,1.1361207,20706.0,20705.0,0.01754441]
[1673751218874,1.34396646,20706.0,20705.0,0.01754441]
[1673751219247,1.39596646,20706.0,20705.0,0.01854441]
[1673751219422,1.1361207,20706.0,20705.0,0.01754441]
[1673751219645,1.2191207,20706.0,20705.0,0.01854441]
[1673751221159,0.995381,20706.0,20705.0,0.01854441]
[1673751221406,0.895381,20706.0,20705.0,0.01854441]
[1673751221661,1.18489726,20706.0,20705.0,0.01854441]
[1673751222439,1.10189726,20706.0,20705.0,0.01754441]
[1673751222694,1.21860726,20706.0,20705.0,0.01754441]
[1673751223003,1.59780726,20706.0,20705.0,0.01754441]
[1673751223501,1.20780726,20706.0,20705.0,0.01754441]
[1673751223780,1.59780726,20706.0,20705.0,0.01754441]
[1673751224514,1.50780726,20706.0,20705.0,0.01754441]
[1673751224732,1.59880726,20706.0,20705.0,0.01754441]
[1673751224992,2.07600895,20706.0,20705.0,0.01754441]
[1673751225245,2.07600895,20706.0,20705.0,0.0173339]
[1673751226266,1.38111253,20706.0,20705.0,0.0173339]
[1673751229277,1.30191253,20706.0,20705.0,0.0173339]
[1673751230047,0.72796153,20706.0,20705.0,0.0173339]
[1673751230555,0.81896153,20706.0,20705.0,0.0173339]
[1673751232313,0.91896153,20706.0,20705.0,0.0173339]
[1673751232583,0.81896153,20706.0,20705.0,0.0173339]
[1673751235326,0.49803153,20706.0,20705.0,0.05314947]
[1673751236109,0.81896153,20706.0,20705.0,0.05314947]
[1673751236379,0.81896153,20706.0,20705.0,0.0173339]
[1673751238163,0.0995,20706.0,20705.0,0.36950082]
[1673751239416,0.0995,20706.0,20705.0,0.30091082]
[1673751245196,0.091,20706.0,20705.0,0.83882485]
[1673751245454,0.091,20706.0,20705.0,0.6480989]
[1673751246461,0.00407732,20707.0,20705.0,0.6480989]
[1673751246718,0.004,20706.0,20705.0,0.5768989]
[1673751246999,0.00407732,20707.0,20705.0,0.5788089]
[1673751247249,0.008,20706.0,20705.0,0.6083089]
[1673751247492,0.00407732,20707.0,20705.0,0.5788089]
[1673751247754,0.00407732,20707.0,20706.0,0.079]
[1673751248007,0.00407732,20707.0,20706.0,0.561951]
[1673751248283,0.00407732,20707.0,20706.0,1.13117695]
[1673751248517,0.01207732,20707.0,20706.0,2.95440784]
[1673751248797,0.00407732,20707.0,20706.0,2.90610694]
[1673751249076,0.01207732,20707.0,20706.0,3.20303634]
[1673751249341,0.0119805,20707.0,20706.0,2.98043634]
[1673751249620,0.0039805,20707.0,20706.0,1.86203988]
[1673751249880,0.0119805,20707.0,20706.0,1.87003988]
[1673751250137,0.0039805,20707.0,20706.0,2.97241293]
[1673751250384,0.0119805,20707.0,20706.0,2.72871383]
[1673751250666,0.0119805,20707.0,20706.0,3.02871383]
[1673751250968,0.0119805,20707.0,20706.0,2.51209178]
[1673751251471,0.0119805,20707.0,20706.0,2.68014749]
[1673751252547,0.0119805,20707.0,20706.0,2.72844839]
[1673751253059,0.0119805,20707.0,20706.0,2.58387972]
[1673751253307,0.05690131,20707.0,20706.0,1.31703691]
[1673751253568,0.0119805,20707.0,20706.0,0.98553691]
[1673751254330,0.0119805,20707.0,20706.0,0.93723601]
[1673751254580,0.0119805,20707.0,20706.0,0.23528249]
[1673751254856,0.0119805,20707.0,20706.0,0.87683349]
[1673751256074,0.008,20707.0,20706.0,0.87683349]
[1673751256573,0.008,20707.0,20706.0,1.17683349]
[1673751257133,0.008,20707.0,20706.0,1.38652461]
[1673751257411,0.008,20707.0,20706.0,0.9898519]
[1673751257653,0.008,20707.0,20706.0,1.37141469]
[1673751258707,0.008,20707.0,20706.0,0.9898519]
[1673751259499,0.008,20707.0,20706.0,1.13411263]
[1673751259729,0.008,20707.0,20706.0,0.9898519]
[1673751260039,0.008,20707.0,20706.0,1.13411263]
[1673751260732,0.008,20707.0,20706.0,1.67771711]
[1673751261512,0.008,20707.0,20706.0,1.53293652]
[1673751262010,0.008,20707.0,20706.0,1.38888771]
[1673751262228,0.008,20707.0,20706.0,1.34058681]
[1673751262534,0.008,20707.0,20706.0,1.38888771]
[1673751262784,0.008,20707.0,20706.0,1.44536997]
[1673751263328,0.008,20707.0,20706.0,1.13389845]
[1673751263886,0.008,20707.0,20706.0,1.12889845]
[1673751264351,0.008,20707.0,20706.0,1.08059755]
[1673751264622,0.008,20707.0,20706.0,1.12889845]
[1673751267178,0.008,20707.0,20706.0,1.52696586]
[1673751267747,0.008,20707.0,20706.0,1.12889845]
[1673751267946,0.008,20707.0,20706.0,1.29695416]
[1673751268911,0.008,20707.0,20706.0,1.08059755]
[1673751269415,0.008,20707.0,20706.0,1.12889845]
[1673751269911,0.00586392,20707.0,20706.0,1.12889845]
[1673751271216,0.00086392,20707.0,20706.0,1.20919122]
[1673751271466,0.00086392,20707.0,20706.0,1.12989122]
[1673751271730,0.00086392,20707.0,20706.0,0.8184197]
[1673751272511,0.33145238,20709.0,20706.0,0.8184197]
[1673751272776,0.008,20707.0,20706.0,0.8244197]
[1673751273548,0.008,20707.0,20706.0,0.3414687]
[1673751273807,0.008,20707.0,20706.0,0.2931678]
[1673751274579,0.35292762,20708.0,20706.0,0.2871678]
[1673751274866,0.008,20707.0,20706.0,0.006]
[1673751275880,0.35292762,20708.0,20705.0,0.78691413]
[1673751276132,0.36092762,20708.0,20706.0,0.006]
[1673751276640,0.35292762,20708.0,20705.0,0.83521503]
[1673751276891,0.35292762,20708.0,20706.0,0.0483009]
[1673751277144,0.008,20707.0,20706.0,0.0543009]
[1673751277396,0.35292762,20708.0,20706.0,0.4105456]
[1673751277652,0.36092762,20708.0,20706.0,0.4105456]
[1673751278172,0.36092762,20708.0,20706.0,0.3622447]
[1673751278677,0.35292762,20708.0,20706.0,0.3622447]
[1673751278988,0.008,20707.0,20706.0,0.3622447]
[1673751279253,0.008,20707.0,20706.0,0.3682447]
[1673751279510,0.008,20707.0,20706.0,0.4204509]
[1673751279764,0.008,20707.0,20706.0,2.77736582]
[1673751280031,0.73924543,20712.0,20706.0,1.66104876]
[1673751280294,0.73924543,20712.0,20708.0,0.0793]
[1673751280584,0.36274543,20712.0,20708.0,0.27002595]
[1673751280799,0.36274543,20712.0,20707.0,0.22332715]
[1673751280800,0.39175987,20710.0,20707.0,0.22332715]
[1673751281057,0.2842568,20709.0,20708.0,0.482905]
[1673751281581,0.2882577,20708.0,20707.0,0.482906]
[1673751281832,0.2882577,20708.0,20706.0,1.38319647]
[1673751283105,0.2962577,20708.0,20706.0,1.38919647]
[1673751283879,0.008,20708.0,20706.0,1.38919647]
[1673751284127,0.008,20708.0,20707.0,0.33903732]
[1673751285124,0.37355765,20710.0,20707.0,0.33903732]
[1673751285376,0.009,20708.0,20707.0,0.82796432]
[1673751285641,0.009,20708.0,20707.0,0.97255472]
[1673751288468,0.009,20708.0,20707.0,1.18935555]
[1673751288715,0.009,20708.0,20707.0,1.37219724]
[1673751289523,0.009,20708.0,20707.0,1.55560956]
[1673751289744,0.009,20708.0,20707.0,1.37219724]
[1673751290506,0.009,20708.0,20707.0,1.55560296]
[1673751291014,0.009,20708.0,20707.0,1.37219724]
[1673751291254,0.009,20708.0,20707.0,1.55560273]
[1673751291508,0.009,20708.0,20707.0,2.52148812]
[1673751291763,0.009,20708.0,20707.0,2.66572712]
[1673751292281,0.009,20708.0,20707.0,2.37689772]
[1673751293844,0.009,20708.0,20707.0,2.66572712]
[1673751294623,0.00888463,20708.0,20707.0,2.37689772]
[1673751295107,0.00888463,20708.0,20707.0,1.3722271]
[1673751295348,0.00888463,20708.0,20707.0,1.15542627]
[1673751296312,0.00888463,20708.0,20707.0,1.3722271]
[1673751296547,0.00888463,20708.0,20707.0,1.55600223]
[1673751296811,0.00888463,20708.0,20707.0,1.3722271]
[1673751298087,0.00888463,20708.0,20707.0,1.5560111]
[1673751298339,0.00888463,20708.0,20707.0,1.5560113]
[1673751298590,0.00888463,20708.0,20707.0,2.37727255]
[1673751298826,0.00888463,20708.0,20707.0,1.55601144]
[1673751299316,0.00888463,20708.0,20707.0,2.5218953]
[1673751300076,0.00888463,20708.0,20707.0,2.3772749]
[1673751301318,0.00888463,20708.0,20707.0,2.6661043]
[1673751303070,0.00888463,20708.0,20707.0,1.15545159]
[1673751303331,0.00888463,20708.0,20707.0,1.01080601]
[1673751303583,0.00888463,20708.0,20707.0,0.34503732]
[1673751304608,0.11995544,20708.0,20707.0,0.006]
[1673751304902,0.28705544,20708.0,20707.0,0.006]
[1673751305152,1.08258028,20708.0,20707.0,0.006]
[1673751305434,1.56548528,20708.0,20707.0,0.006]
[1673751305663,1.74491882,20708.0,20707.0,0.006]
[1673751305873,1.52919219,20708.0,20707.0,0.006]
[1673751306172,1.52030756,20708.0,20705.0,0.0173339]
[1673751306429,1.26550419,20708.0,20707.0,0.006]
[1673751306681,1.74383419,20708.0,20707.0,0.006]
[1673751307224,1.59102725,20708.0,20705.0,0.0173339]
[1673751307467,0.0793,20706.0,20705.0,0.0173339]
[1673751307726,0.883181,20706.0,20705.0,0.0173339]
[1673751307974,0.891681,20706.0,20705.0,0.0173339]
[1673751308487,1.2345386,20706.0,20705.0,0.0223339]
[1673751308999,0.7515876,20706.0,20705.0,0.0223339]
[1673751309257,0.6360316,20706.0,20705.0,0.0223339]
[1673751309512,0.4266576,20706.0,20705.0,0.0173339]
[1673751310530,0.7995876,20706.0,20705.0,0.0183339]
[1673751310772,0.7475876,20706.0,20705.0,0.0173339]
[1673751311022,0.4306576,20706.0,20705.0,0.0223339]
[1673751311283,0.7475876,20706.0,20705.0,0.0173339]
[1673751311544,0.4786576,20706.0,20705.0,0.0183339]
[1673751311795,0.4266576,20706.0,20705.0,0.0173339]
[1673751312046,0.4306576,20706.0,20705.0,0.0223339]
[1673751312559,0.4266576,20706.0,20705.0,0.0173339]
[1673751313058,0.7475876,20706.0,20705.0,0.0173339]
[1673751313550,0.4266576,20706.0,20705.0,0.0173339]
[1673751314553,0.7995876,20706.0,20705.0,0.0173339]
[1673751314798,0.7475876,20706.0,20705.0,0.0173339]
[1673751315049,0.7475876,20706.0,20705.0,0.0223339]
[1673751315050,0.7515876,20706.0,20705.0,0.0223339]
[1673751315304,0.75146784,20706.0,20705.0,0.0223339]
[1673751316062,0.43053784,20706.0,20705.0,0.0223339]
[1673751316319,0.43053784,20706.0,20705.0,0.0233339]
[1673751316320,0.75146784,20706.0,20705.0,0.0233339]
[1673751316590,0.80346784,20706.0,20705.0,0.0233339]
[1673751318318,0.46461024,20706.0,20705.0,0.0233339]
[1673751318613,1.28135259,20706.0,20705.0,0.0233339]
[1673751320090,1.20217235,20706.0,20705.0,0.0233339]
[1673751320347,1.14617235,20706.0,20705.0,0.0173339]
[1673751320607,0.901381,20706.0,20705.0,0.0173339]
[1673751321270,1.29632044,20706.0,20705.0,0.0173339]
[1673751322654,0.49243944,20706.0,20705.0,0.20805985]
[1673751322904,0.49243944,20706.0,20705.0,0.0709123]
[1673751323922,0.0975,20706.0,20705.0,0.0709123]
[1673751324667,0.0975,20706.0,20705.0,0.41080999]
[1673751325174,0.0975,20706.0,20705.0,0.35723159]
[1673751326189,0.0975,20706.0,20705.0,0.0173339]
[1673751326446,0.46411004,20706.0,20705.0,0.0173339]
[1673751327991,0.78504004,20706.0,20705.0,0.0173339]
[1673751328260,0.46411004,20706.0,20705.0,0.0173339]
[1673751328504,0.78504004,20706.0,20705.0,0.0173339]
[1673751329027,0.46411004,20706.0,20705.0,0.0173339]
[1673751329283,0.78504004,20706.0,20705.0,0.0173339]
[1673751329532,0.66948404,20706.0,20705.0,0.0173339]
[1673751330815,0.46411004,20706.0,20705.0,0.0173339]
[1673751331073,0.78504004,20706.0,20705.0,0.0173339]
[1673751331587,1.26799104,20706.0,20705.0,0.0173339]
[1673751333072,1.34729104,20706.0,20705.0,0.0173339]
[1673751333321,1.34729104,20706.0,20705.0,0.0426181]
[1673751335956,0.980681,20706.0,20705.0,0.04250874]
[1673751336207,1.34020852,20706.0,20705.0,0.04250874]
[1673751336548,1.64020852,20706.0,20705.0,0.04250874]
[1673751336724,1.19640763,20706.0,20705.0,0.04250874]
[1673751336989,1.48402152,20706.0,20705.0,0.04250874]
[1673751337237,1.19640763,20706.0,20705.0,0.04250874]
[1673751337486,1.78394455,20706.0,20705.0,0.04250874]
[1673751337744,1.48402673,20706.0,20705.0,0.04250874]
[1673751338003,1.53153017,20706.0,20705.0,0.04250874]
[1673751338258,1.48402673,20706.0,20705.0,0.04250874]
[1673751338789,1.47929489,20706.0,20705.0,0.04250874]
[1673751339040,2.64455578,20706.0,20705.0,0.04250874]
[1673751339295,3.24055358,20706.0,20705.0,0.04250874]
[1673751339574,2.68190238,20706.0,20705.0,0.04250874]
[1673751340075,3.04155353,20706.0,20705.0,0.04250874]
[1673751340374,2.95055353,20706.0,20705.0,0.04250874]
[1673751340581,3.04155353,20706.0,20705.0,0.04250874]
[1673751340835,0.0120645,20704.0,20701.0,0.01754441]
[1673751341101,0.0793,20702.0,20701.0,0.01754441]
[1673751341363,0.40023,20702.0,20701.0,0.01754441]
[1673751341654,0.40873,20702.0,20701.0,0.01754441]
[1673751341886,0.0878,20702.0,20701.0,0.01754441]
[1673751342140,0.0985,20702.0,20701.0,0.3053231]
[1673751343153,0.0085,20702.0,20701.0,0.3053231]
[1673751343405,0.0985,20702.0,20701.0,0.3053231]
[1673751343670,0.0085,20702.0,20701.0,0.3053231]
[1673751343929,0.0985,20702.0,20701.0,0.3053231]
[1673751345488,0.0985,20702.0,20701.0,0.01754441]
[1673751345731,0.42595982,20702.0,20701.0,0.01754441]
[1673751349685,0.0985,20702.0,20701.0,0.01754441]
[1673751349937,0.0985,20702.0,20701.0,0.34054876]
[1673751350967,0.0985,20702.0,20701.0,0.01754441]
[1673751355369,0.48361313,20702.0,20701.0,0.01754441]
[1673751356125,0.0985,20702.0,20701.0,0.35267474]
[1673751358125,0.0985,20702.0,20701.0,0.20267474]
[1673751361212,0.0985,20702.0,20701.0,0.68574274]
[1673751361734,0.098258,20702.0,20701.0,0.68574274]
[1673751363260,0.098258,20702.0,20701.0,0.483068]
[1673751363261,0.47855896,20702.0,20701.0,0.483068]
[1673751363763,0.47855896,20702.0,20700.0,0.83760143]
[1673751365286,0.38855896,20702.0,20700.0,0.83760143]
[1673751365539,0.38855896,20702.0,20700.0,0.01754441]
[1673751365540,0.33183008,20701.0,20700.0,0.01754441]
[1673751365789,0.34033008,20701.0,20700.0,0.01754441]
[1673751367022,0.38933008,20701.0,20700.0,0.01754441]
[1673751369375,1.44446432,20701.0,20700.0,0.01754441]
[1673751369622,2.63586481,20701.0,20700.0,0.01754441]
[1673751369868,2.33586481,20701.0,20700.0,0.01754441]
[1673751370115,2.04811263,20701.0,20700.0,0.01754441]
[1673751370406,2.28693092,20701.0,20700.0,0.01754441]
[1673751370671,2.37793092,20701.0,20700.0,0.01754441]
[1673751370945,1.63477527,20701.0,20700.0,0.01754441]
[1673751371184,2.22843318,20701.0,20700.0,0.01754441]
[1673751371442,2.58812341,20701.0,20700.0,0.01754441]
[1673751371721,2.39130512,20701.0,20700.0,0.01754441]
[1673751372203,2.86850681,20701.0,20700.0,0.01754441]
[1673751372492,1.43211622,20701.0,20700.0,0.01754441]
[1673751372743,1.18383588,20701.0,20700.0,0.01754441]
[1673751373003,1.09283588,20701.0,20700.0,0.01754441]
[1673751373248,0.96808315,20701.0,20700.0,0.01754441]
[1673751373503,0.87708315,20701.0,20700.0,0.01754441]
[1673751373760,0.64361766,20701.0,20700.0,0.01754441]
[1673751374018,0.95937039,20701.0,20700.0,0.01754441]
[1673751374266,0.74361766,20701.0,20700.0,0.01754441]
[1673751374519,0.95937039,20701.0,20700.0,0.01754441]
[1673751375055,0.98907167,20701.0,20700.0,0.01754441]
[1673751375325,0.64361766,20701.0,20700.0,0.01754441]
[1673751375828,1.29770864,20701.0,20700.0,0.01754441]
[1673751376078,1.04265258,20701.0,20700.0,0.01754441]
[1673751376335,1.15943824,20701.0,20700.0,0.01754441]
[1673751376590,0.99566432,20701.0,20700.0,0.01754441]
[1673751377837,0.64354446,20701.0,20700.0,0.01754441]
[1673751378107,0.95554454,20701.0,20700.0,0.01754441]
[1673751378368,0.81183008,20701.0,20700.0,0.01754441]
[1673751378878,0.64354446,20701.0,20700.0,0.01754441]
[1673751379388,0.73618273,20701.0,20700.0,0.01754441]
[1673751379912,1.84400406,20701.0,20700.0,0.01754441]
[1673751380211,2.13167437,20701.0,20700.0,0.01754441]
[1673751380749,2.04067437,20701.0,20700.0,0.01754441]
[1673751381022,1.74067437,20701.0,20700.0,0.01754441]
[1673751381279,1.64067437,20701.0,20700.0,0.01754441]
[1673751381495,1.49664522,20701.0,20700.0,0.01754441]
[1673751381795,1.34209189,20701.0,20700.0,0.01744532]
[1673751382803,1.12633916,20701.0,20700.0,0.01744532]
[1673751382805,1.34209189,20701.0,20700.0,0.01744532]
[1673751383062,1.12633916,20701.0,20700.0,0.01744532]
[1673751383859,1.34209189,20701.0,20700.0,0.01744532]
[1673751384108,1.78612104,20701.0,20700.0,0.01744532]
[1673751384364,1.57036831,20701.0,20700.0,0.01744532]
[1673751384623,1.47936831,20701.0,20700.0,0.01744532]
[1673751384882,2.80002289,20701.0,20700.0,0.01744532]
[1673751385173,2.70902289,20701.0,20700.0,0.01744532]
[1673751385396,3.27722458,20701.0,20700.0,0.01744532]
[1673751385651,0.01146899,20699.0,20698.0,0.01795304]
[1673751385930,1.41455235,20699.0,20698.0,0.01795304]
[1673751386944,1.62992139,20699.0,20698.0,0.01795304]
[1673751387461,3.20992188,20699.0,20698.0,0.01795304]
[1673751387746,3.91573609,20699.0,20698.0,0.01795304]
[1673751387973,4.26331528,20699.0,20698.0,0.01795304]
[1673751388230,0.1,20698.0,20697.0,0.01018315]
[1673751388492,2.97789685,20698.0,20696.0,0.01795304]
[1673751388736,0.1,20696.0,20692.0,0.01812941]
[1673751389005,0.24930643,20693.0,20692.0,0.01812941]
[1673751389253,1.48883456,20693.0,20682.0,0.36163776]
[1673751389503,1.48883456,20693.0,20681.0,0.32721308]
[1673751389504,0.0794,20685.0,20684.0,0.29614003]
[1673751389781,1.172258,20685.0,20679.0,0.36163776]
[1673751390023,0.32943,20684.0,20683.0,0.34013292]
[1673751390321,0.05342081,20684.0,20683.0,0.34013292]
[1673751390522,0.45375081,20684.0,20682.0,0.32746534]
[1673751390783,0.18638362,20683.0,20678.0,0.0028366]
[1673751391035,0.05342081,20682.0,20681.0,0.31402285]
[1673751391288,0.29183284,20683.0,20681.0,0.31402285]
[1673751391578,0.29183284,20683.0,20678.0,0.05457026]
[1673751391786,0.05342081,20682.0,20680.0,0.38028076]
[1673751392041,0.0085,20682.0,20680.0,0.38028076]
[1673751392318,0.05342081,20682.0,20678.0,0.0028366]
[1673751392583,0.05342081,20682.0,20678.0,0.39596952]
[1673751393347,0.0085,20682.0,20678.0,0.0028366]
[1673751393621,0.29599846,20681.0,20679.0,0.29711812]
[1673751393856,0.0085,20680.0,20679.0,0.29711812]
[1673751394366,0.0135,20682.0,20679.0,0.32494312]
[1673751394618,0.30827058,20682.0,20679.0,0.29711812]
[1673751394887,0.30327058,20682.0,20679.0,0.78069912]
[1673751395135,0.005,20680.0,20679.0,0.78069912]
[1673751395405,0.30327058,20682.0,20679.0,0.483581]
[1673751395645,0.30327058,20682.0,20680.0,0.107222]
[1673751395646,0.0575,20682.0,20680.0,0.107222]
[1673751395899,0.049,20682.0,20681.0,0.80622774]
[1673751396162,0.38217011,20685.0,20681.0,0.83404674]
[1673751396395,0.38217011,20685.0,20682.0,0.19072595]
[1673751396652,0.38217011,20685.0,20682.0,0.67423395]
[1673751396908,0.38217011,20685.0,20682.0,0.483508]
[1673751397685,0.38931397,20684.0,20681.0,0.80622774]
[1673751398054,0.34228301,20683.0,20681.0,0.32269274]
[1673751398201,0.009,20682.0,20681.0,0.32269274]
[1673751398446,0.34228301,20683.0,20681.0,0.32269274]
[1673751398696,0.0085,20683.0,20681.0,0.32269274]
[1673751399464,0.31744814,20682.0,20679.0,0.35183417]
[1673751399709,0.0085,20681.0,20679.0,0.35183417]
[1673751400741,0.0085,20681.0,20680.0,0.34364272]
[1673751401271,0.0085,20681.0,20678.0,0.0028366]
[1673751401499,0.3212096,20681.0,20678.0,0.34381179]
[1673751401767,0.3212096,20681.0,20679.0,0.38837865]
[1673751402009,0.3212096,20681.0,20679.0,0.38337865]
[1673751402532,0.3212096,20681.0,20678.0,0.0028366]
[1673751403002,0.3312096,20681.0,20678.0,0.0028366]
[1673751403503,0.39072393,20680.0,20677.0,0.72302673]
[1673751404047,0.39072393,20680.0,20677.0,0.29009013]
[1673751404328,0.39072393,20680.0,20677.0,0.77371613]
[1673751405087,0.39972393,20680.0,20677.0,0.77371613]
[1673751405658,0.39972393,20680.0,20677.0,0.29009013]
[1673751405914,0.39072393,20680.0,20677.0,0.29009013]
[1673751406431,0.39072393,20680.0,20677.0,0.96444408]
[1673751406688,0.009,20680.0,20678.0,0.02783]
[1673751406956,0.009,20680.0,20678.0,0.483598]
[1673751407204,0.009,20680.0,20679.0,0.027827]
[1673751407445,0.0085,20681.0,20679.0,0.511409]
[1673751407705,0.01,20680.0,20679.0,0.483582]
[1673751408239,0.32353864,20681.0,20679.0,0.483582]
[1673751408459,0.005,20680.0,20679.0,0.483582]
[1673751408707,0.005,20680.0,20679.0,0.511407]
[1673751409045,0.005,20680.0,20679.0,1.01633473]
[1673751409258,0.005,20680.0,20679.0,1.34863473]
[1673751409517,0.28171472,20685.0,20680.0,0.1]
[1673751409802,0.005,20681.0,20680.0,0.4]
[1673751410055,0.27704602,20688.0,20680.0,1.52076073]
[1673751410309,0.32994994,20687.0,20683.0,0.0794]
[1673751410568,0.32994994,20687.0,20684.0,1.073626]
[1673751410873,0.32994994,20687.0,20684.0,1.04582]
[1673751411136,0.009,20688.0,20685.0,0.0278]
[1673751411384,0.009,20688.0,20687.0,0.0794]
[1673751411655,0.39787941,20692.0,20687.0,0.78131495]
[1673751411902,0.39787941,20692.0,20689.0,0.0794]
[1673751412153,0.00332814,20693.0,20690.0,1.74748295]
[1673751412400,0.00332814,20693.0,20691.0,0.19072595]
[1673751412642,0.00332814,20693.0,20692.0,1.66833295]
[1673751412892,0.00332814,20693.0,20691.0,0.1]
[1673751413146,0.00632814,20693.0,20690.0,0.536318]
[1673751413400,0.00632814,20693.0,20690.0,0.483318]
[1673751413401,0.33726537,20692.0,20690.0,0.483318]
[1673751413913,0.00332814,20693.0,20690.0,0.483318]
[1673751414183,0.00632814,20693.0,20691.0,0.41697373]
[1673751414436,0.00632814,20693.0,20692.0,0.483278]
[1673751414737,0.00132814,20693.0,20692.0,0.51105]
[1673751415497,0.00309225,20694.0,20692.0,0.483278]
[1673751415742,0.006,20693.0,20692.0,0.483278]
[1673751416242,0.29399253,20693.0,20692.0,0.014]
[1673751416494,0.29399253,20693.0,20690.0,0.483318]
[1673751416495,0.1,20692.0,20688.0,0.895654]
[1673751416768,0.37437281,20691.0,20689.0,0.39192704]
[1673751417002,0.05342081,20691.0,20689.0,0.39192704]
[1673751417307,0.320952,20690.0,20689.0,0.39192704]
[1673751417520,0.0085,20690.0,20686.0,0.483409]
[1673751417771,0.04492081,20690.0,20688.0,0.39595238]
[1673751418050,0.0085,20691.0,20688.0,0.39595238]
[1673751418283,0.0145,20691.0,20689.0,0.026]
[1673751418563,0.0085,20691.0,20688.0,0.39595238]
[1673751418774,0.002,20690.0,20689.0,0.30917553]
[1673751419024,0.0085,20691.0,20686.0,0.483409]
[1673751419266,0.37799837,20690.0,20689.0,0.003]
[1673751419509,0.38649837,20690.0,20688.0,0.38294959]
[1673751419781,0.43899837,20690.0,20689.0,0.003]
[1673751420024,0.44749837,20690.0,20689.0,0.003]
[1673751420838,0.76845037,20690.0,20689.0,0.003]
[1673751421127,1.46689618,20690.0,20689.0,0.003]
[1673751421374,1.28729374,20690.0,20689.0,0.003]
[1673751421624,0.953177,20690.0,20689.0,0.003]
[1673751421881,1.253177,20690.0,20689.0,0.003]
[1673751422432,0.892177,20690.0,20684.0,0.33607531]
[1673751422671,0.556825,20690.0,20689.0,0.003]
[1673751422928,0.635525,20690.0,20689.0,0.003]
[1673751423194,1.24897839,20690.0,20689.0,0.003]
[1673751423766,0.92802639,20690.0,20689.0,0.003]
[1673751424021,1.18397839,20690.0,20686.0,0.30096556]
[1673751424277,0.38634727,20689.0,20686.0,0.30096556]
[1673751425108,0.38634727,20689.0,20686.0,0.32696556]
[1673751425649,0.38634727,20689.0,20686.0,0.30096556]
[1673751425917,0.39334727,20689.0,20686.0,0.32696556]
[1673751427205,0.39334727,20689.0,20687.0,0.30363145]
[1673751428501,0.38634727,20689.0,20687.0,0.31763145]
[1673751428723,0.38834727,20689.0,20687.0,0.31763145]
[1673751430344,0.0105,20689.0,20687.0,0.31763145]
[1673751430836,0.36068515,20689.0,20687.0,0.014]
[1673751431607,0.320952,20688.0,20687.0,0.014]
[1673751432139,0.29513002,20688.0,20687.0,0.014]